fUSD/lending_fUSD_20240920
["ID","MTS","AMOUNT","RATE_DAILY","PERIOD"]
[338620826,1726804887416,543.10491477,0.00022999,120]
[338620827,1726804888334,500.0,0.00022999,120]
[338620828,1726804888605,224.42,0.00011917,2]
[338620829,1726804888648,500.0,0.00022999,120]
[338620830,1726804888905,209.93750023,0.00022999,120]
[338620831,1726804889519,522.33082764,0.00022999,120]
[338620832,1726804890576,500.63569325,0.00022999,120]
[338620833,1726804891121,500.49676528,0.00022999,120]
[338620834,1726804891201,500.0,0.00022999,120]
[338620835,1726804891240,500.0,0.00022999,120]
[338620836,1726804891479,500.0,0.00022999,120]
[338620837,1726804891642,500.0,0.00022999,120]
[338620838,1726804891681,500.78561208,0.00022999,120]
[338620839,1726804891738,500.0,0.00022999,120]
[338620840,1726804891903,500.0,0.00022999,120]
[338620841,1726804892018,500.0,0.00022999,120]
[338620842,1726804892190,643.06400835,0.00022999,120]
[338620843,1726804892315,445.05807461,0.00022999,120]
[338620844,1726804893086,501.21037886,0.00022999,120]
[338620845,1726804893326,560.61692397,0.00022999,120]
[338620846,1726804894317,500.0,0.00022999,120]
[338620847,1726804894645,505.19185166,0.00022999,120]
[338620848,1726804894994,572.64986927,0.00022999,120]
[338620849,1726804896102,591.09450785,0.00022999,120]
[338620850,1726804897004,500.0,0.00022999,120]
[338620851,1726804897206,500.0,0.00022999,120]
[338620852,1726804897284,610.71351269,0.00022999,120]
[338620853,1726804897473,500.0,0.00022999,120]
[338620854,1726804897786,169.72240458,0.00022999,120]
[338620855,1726804898817,572.62251649,0.00022999,120]
[338620856,1726804899579,590.77726391,0.00022999,120]
[338620857,1726804900027,500.0,0.00022999,120]
[338620858,1726804900326,500.0,0.00022999,120]
[338620859,1726804900782,368.05887333,0.00022999,120]
[338620860,1726804901044,500.0,0.00022999,120]
[338620861,1726804901358,500.0,0.00022999,120]
[338620862,1726804901628,356.0817956,0.00022999,120]
[338620863,1726804901668,570.06,0.00022999,120]
[338620864,1726804901877,501.17119191,0.00022999,120]
[338620865,1726804902748,500.67034241,0.00022999,120]
[338620866,1726804904200,649.33965365,0.00022999,120]
[338620867,1726804904776,500.0,0.00022999,120]
[338620868,1726804905091,500.0,0.00022999,120]
[338620869,1726804905558,150.0,0.00022986,120]
[338620870,1726804905717,403.96501555,0.00022999,120]
[338620871,1726804906109,500.0,0.00022999,120]
[338620872,1726804906377,500.0,0.00022999,120]
[338620873,1726804906535,500.0,0.00022999,120]
[338620874,1726804906631,214.54225342,0.00022999,120]
[338620875,1726804906914,500.0,0.00022999,120]
[338620876,1726804907280,500.0,0.00022999,120]
[338620877,1726804907324,452.5688157,0.00022999,120]
[338620878,1726804907526,500.0,0.00022999,120]
[338620879,1726804907785,553.17717263,0.00022999,120]
[338620880,1726804909434,500.0,0.00022999,120]
[338620881,1726804909708,500.0,0.00022999,120]
[338620882,1726804910016,634.22693222,0.00022999,120]
[338620883,1726804911410,550.39747662,0.00022999,120]
[338620884,1726804912278,500.76024065,0.00022999,120]
[338620885,1726804912376,500.0,0.00022999,120]
[338620886,1726804912646,500.0,0.00022999,120]
[338620887,1726804912907,559.32659811,0.00022999,120]
[338620888,1726804913444,500.99217048,0.00022999,120]
[338620889,1726804913595,500.0,0.00022999,120]
[338620890,1726804913766,500.0,0.00022999,120]
[338620891,1726804913937,500.0,0.00022999,120]
[338620892,1726804914067,500.0,0.00022999,120]
[338620893,1726804914270,457.54834926,0.00022999,120]
[338620894,1726804914338,279.11,0.00022999,120]
[338620895,1726804914657,516.71678057,0.00022999,120]
[338620896,1726804916384,500.0,0.00022999,120]
[338620897,1726804916708,500.0,0.00022999,120]
[338620898,1726804916985,500.0,0.00022999,120]
[338620899,1726804917259,500.0,0.00022999,120]
[338620900,1726804917301,500.0,0.00022999,120]
[338620901,1726804917529,500.0,0.00022999,120]
[338620902,1726804917574,257.30055671,0.00022999,120]
[338620903,1726804917799,500.0,0.00022999,120]
[338620904,1726804918112,500.0,0.00022999,120]
[338620905,1726804918490,500.0,0.00022999,120]
[338620906,1726804918779,584.47659277,0.00022999,120]
[338620907,1726804919558,500.0,0.00022999,120]
[338620908,1726804919758,500.0,0.00022999,120]
[338620909,1726804919809,344.91304223,0.00022999,120]
[338620910,1726804920028,500.0,0.00022999,120]
[338620911,1726804920483,500.0,0.00022999,120]
[338620912,1726804920580,254.84043816,0.00022999,120]
[338620913,1726804921859,500.0,0.00022999,120]
[338620914,1726804922111,469.13729987,0.00022999,120]
[338620915,1726804922423,500.7256434,0.00022999,120]
[338620916,1726804922829,524.73024828,0.00022999,120]
[338620917,1726804925863,500.59378135,0.00022999,120]
[338620918,1726804926320,511.92941666,0.00022999,120]
[338620919,1726804927021,501.28826426,0.00022999,120]
[338620920,1726804928074,500.0,0.00022999,120]
[338620921,1726804928377,249.46994291,0.00022999,120]
[338620922,1726804929380,515.08386538,0.00022999,120]
[338620923,1726804930755,500.0,0.00022999,120]
[338620924,1726804931039,500.0,0.00022999,120]
[338620925,1726804931456,534.69929231,0.00022999,120]
[338620926,1726804931739,633.37821478,0.00022999,120]
[338620927,1726804933841,500.0,0.00022999,120]
[338620928,1726804934113,500.0,0.00022999,120]
[338620929,1726804934390,500.0,0.00022999,120]
[338620930,1726804934680,395.96451095,0.00022999,120]
[338620932,1726804938023,500.0,0.00022999,120]
[338620934,1726804938330,500.0,0.00022999,120]
[338620935,1726804938376,409.06409313,0.00022999,120]
[338620937,1726804938857,482.04729844,0.00022999,120]
[338620940,1726804940685,500.0,0.00022999,120]
[338620941,1726804940790,500.66963057,0.00022999,120]
[338620942,1726804940968,500.0,0.00022999,120]
[338620943,1726804941221,500.0,0.00022999,120]
[338620944,1726804941645,493.96727949,0.00022999,120]
[338620945,1726804941685,500.0,0.00022999,120]
[338620946,1726804941826,500.0,0.00022999,120]
[338620947,1726804942416,500.0,0.00022999,120]
[338620948,1726804942706,500.0,0.00022999,120]
[338620949,1726804942970,500.0,0.00022999,120]
[338620950,1726804943012,500.96947878,0.00022999,120]
[338620951,1726804943220,500.0,0.00022999,120]
[338620952,1726804943503,481.62126133,0.00022999,120]
[338620953,1726804943556,500.0,0.00022999,120]
[338620954,1726804943638,500.0,0.00022999,120]
[338620955,1726804943838,500.0,0.00022999,120]
[338620956,1726804944078,220.57509269,0.00022999,120]
[338620957,1726804944126,500.0,0.00022999,120]
[338620958,1726804944371,216.59911885,0.00022999,120]
[338620959,1726804945129,517.5955308,0.00022999,120]
[338620960,1726804945984,500.0,0.00022999,120]
[338620961,1726804946207,500.34536452,0.00022999,120]
[338620962,1726804946250,500.0,0.00022999,120]
[338620963,1726804946490,500.0,0.00022999,120]
[338620964,1726804946768,500.0,0.00022999,120]
[338620965,1726804946907,604.94113688,0.00022999,120]
[338620966,1726804947013,411.20194147,0.00022999,120]
[338620967,1726804947203,500.0,0.00022999,120]
[338620968,1726804947475,595.27076726,0.00022999,120]
[338620969,1726804948050,500.0,0.00022999,120]
[338620970,1726804948308,500.0,0.00022999,120]
[338620971,1726804948605,500.0,0.00022999,120]
[338620972,1726804948878,328.42223165,0.00022999,120]
[338620973,1726804949187,500.69832408,0.00022999,120]
[338620974,1726804949765,520.88745598,0.00022999,120]
[338620975,1726804949881,500.0,0.00022999,120]
[338620976,1726804950164,198.92700207,0.00022999,120]
[338620977,1726804950759,500.0,0.00022999,120]
[338620978,1726804951169,500.0,0.00022999,120]
[338620979,1726804951206,168.17765895,0.00022999,120]
[338620980,1726804951362,500.0,0.00022999,120]
[338620981,1726804951493,500.0,0.00022999,120]
[338620982,1726804951838,500.0,0.00022999,120]
[338620983,1726804951889,500.0,0.00022999,120]
[338620984,1726804951935,500.0,0.00022999,120]
[338620985,1726804952052,500.0,0.00022999,120]
[338620986,1726804952204,304.50867465,0.00022999,120]
[338620987,1726804952322,615.24865569,0.00022999,120]
[338620988,1726804952364,500.85493843,0.00022999,120]
[338620989,1726804953235,535.84336319,0.00022999,120]
[338620990,1726804953875,501.15435435,0.00022999,120]
[338620991,1726804954392,500.0,0.00022999,120]
[338620992,1726804954443,500.0,0.00022999,120]
[338620993,1726804954573,500.0,0.00022999,120]
[338620994,1726804954672,334.811347,0.00022999,120]
[338620995,1726804954712,500.0,0.00022999,120]
[338620996,1726804954832,167.20564862,0.00022999,120]
[338620997,1726804954910,501.08524864,0.00022999,120]
[338620998,1726804954988,500.0,0.00022999,120]
[338620999,1726804955260,500.0,0.00022999,120]
[338621000,1726804955530,500.0,0.00022999,120]
[338621001,1726804955834,500.0,0.00022999,120]
[338621002,1726804955914,501.1632869,0.00022999,120]
[338621003,1726804956115,500.0,0.00022999,120]
[338621004,1726804956169,500.7925288,0.00022999,120]
[338621005,1726804956399,404.74930352,0.00022999,120]
[338621006,1726804956679,500.0,0.00022999,120]
[338621007,1726804956917,500.0,0.00022999,120]
[338621008,1726804956985,613.97,0.00022999,120]
[338621009,1726804957267,500.0,0.00022999,120]
[338621010,1726804957586,476.41896607,0.00022999,120]
[338621011,1726804958251,500.0,0.00022999,120]
[338621012,1726804958388,500.0,0.00022999,120]
[338621013,1726804958544,208.74737441,0.00022999,120]
[338621014,1726804958655,500.0,0.00022999,120]
[338621015,1726804958981,500.0,0.00022999,120]
[338621016,1726804959214,500.6845013,0.00022999,120]
[338621017,1726804959258,500.0,0.00022999,120]
[338621018,1726804959549,500.0,0.00022999,120]
[338621019,1726804959836,500.0,0.00022999,120]
[338621020,1726804959877,500.0,0.00022999,120]
[338621021,1726804960132,548.02198129,0.00022999,120]
[338621022,1726804960514,374.33563636,0.00022999,120]
[338621023,1726804961007,500.0,0.00022999,120]
[338621024,1726804961111,229.87029543,0.00022999,120]
[338621025,1726804962011,500.0,0.00022999,120]
[338621026,1726804962108,500.0,0.00022999,120]
[338621027,1726804962151,500.0,0.00022999,120]
[338621028,1726804962385,500.0,0.00022999,120]
[338621029,1726804962648,500.0,0.00022999,120]
[338621030,1726804962686,639.47257474,0.00022999,120]
[338621031,1726804962723,500.0,0.00022999,120]
[338621032,1726804962801,502.08133564,0.00022999,120]
[338621033,1726804962903,500.0,0.00022999,120]
[338621034,1726804962950,468.80769253,0.00022999,120]
[338621035,1726804963186,162.10854977,0.00022999,120]
[338621036,1726804964387,500.0,0.00022999,120]
[338621037,1726804964652,500.0,0.00022999,120]
[338621038,1726804964758,501.21513709,0.00022999,120]
[338621039,1726804964918,500.0,0.00022999,120]
[338621040,1726804965193,500.0,0.00022999,120]
[338621041,1726804965461,574.38292434,0.00022999,120]
[338621042,1726804965712,635.67567502,0.00022999,120]
[338621043,1726804967837,500.0,0.00022999,120]
[338621044,1726804968097,556.30835929,0.00022999,120]
[338621045,1726804968908,500.0,0.00022999,120]
[338621046,1726804969193,500.0,0.00022999,120]
[338621047,1726804969472,500.0,0.00022999,120]
[338621048,1726804969657,500.85464319,0.00022999,120]
[338621049,1726804969740,500.0,0.00022999,120]
[338621050,1726804970005,500.0,0.00022999,120]
[338621051,1726804970260,500.0,0.00022999,120]
[338621052,1726804970533,500.0,0.00022999,120]
[338621053,1726804970672,500.0,0.00022999,120]
[338621054,1726804970800,500.0,0.00022999,120]
[338621055,1726804971074,570.2596575,0.00022999,120]
[338621056,1726804971233,393.54086265,0.00022999,120]
[338621057,1726804973896,500.0,0.00022999,120]
[338621058,1726804974159,500.0,0.00022999,120]
[338621059,1726804974460,224.38,0.00022999,120]
[338621060,1726804975115,500.62949793,0.00022999,120]
[338621061,1726804976583,500.0,0.00022999,120]
[338621062,1726804976866,500.0,0.00022999,120]
[338621063,1726804977009,501.38418547,0.00022999,120]
[338621064,1726804977097,501.13060272,0.00022999,120]
[338621065,1726804977336,500.0,0.00022999,120]
[338621066,1726804977601,527.32761887,0.00022999,120]
[338621067,1726804980344,500.52562614,0.00022999,120]
[338621068,1726804981124,500.0,0.00022999,120]
[338621069,1726804981413,500.0,0.00022999,120]
[338621070,1726804981718,376.00312751,0.00022999,120]
[338621071,1726804981912,501.05945182,0.00022999,120]
[338621072,1726804985815,501.25352646,0.00022999,120]
[338621073,1726804986145,500.0,0.00022999,120]
[338621074,1726804986772,437.12107248,0.00022999,120]
[338621075,1726804987627,500.80747224,0.00022999,120]
[338621076,1726804988165,501.60574267,0.00022999,120]
[338621077,1726804992140,500.3610625,0.00022999,120]
[338621078,1726804993221,500.0,0.00022999,120]
[338621079,1726804993544,500.0,0.00022999,120]
[338621080,1726804993813,378.00089438,0.00022999,120]
[338621081,1726804994386,500.45526255,0.00022999,120]
[338621082,1726804995953,500.0,0.00022999,120]
[338621083,1726804996251,629.27428528,0.00022999,120]
[338621084,1726804996346,500.65336478,0.00022999,120]
[338621085,1726804996497,500.88377738,0.00022999,120]
[338621086,1726804998215,503.29697505,0.00022999,120]
[338621087,1726804998611,500.0,0.00022999,120]
[338621088,1726804998921,500.0,0.00022999,120]
[338621089,1726804999034,500.97415054,0.00022999,120]
[338621090,1726804999192,500.0,0.00022999,120]
[338621091,1726804999447,500.0,0.00022999,120]
[338621092,1726804999732,500.0,0.00022999,120]
[338621093,1726805000029,500.0,0.00022999,120]
[338621094,1726805000319,500.0,0.00022999,120]
[338621095,1726805000601,500.0,0.00022999,120]
[338621096,1726805000883,500.0,0.00022999,120]
[338621097,1726805001132,514.90334421,0.00022999,120]
[338621098,1726805001176,500.0,0.00022999,120]
[338621099,1726805001420,426.22839536,0.00022999,120]
[338621100,1726805002524,649.25615853,0.00022999,120]
[338621101,1726805003171,568.73364119,0.00022999,120]
[338621102,1726805005514,500.61812449,0.00022999,120]
[338621103,1726805006409,500.0,0.00022999,120]
[338621104,1726805006806,311.96295316,0.00022999,120]
[338621105,1726805007608,501.06170671,0.00022999,120]
[338621106,1726805007651,500.0,0.00022999,120]
[338621107,1726805011968,603.13895085,0.00022999,120]
[338621108,1726805012321,501.2048456,0.00022999,120]
[338621110,1726805014336,500.0,0.00022999,120]
[338621111,1726805014622,499.23918064,0.00022999,120]
[338621112,1726805016670,500.0,0.00022999,120]
[338621113,1726805016975,500.0,0.00022999,120]
[338621114,1726805017261,500.0,0.00022999,120]
[338621115,1726805017624,271.21036079,0.00022999,120]
[338621116,1726805018930,500.0,0.00022999,120]
[338621117,1726805019534,219.22743923,0.00022999,120]
[338621118,1726805019820,500.0,0.00022999,120]
[338621119,1726805020074,500.0,0.00022999,120]
[338621120,1726805020444,500.0,0.00022999,120]
[338621121,1726805020717,500.0,0.00022999,120]
[338621122,1726805021000,321.22900963,0.00022999,120]
[338621123,1726805021920,500.0,0.00022999,120]
[338621124,1726805022177,550.3366165,0.00022999,120]
[338621125,1726805023017,500.0,0.00022999,120]
[338621126,1726805023076,500.0,0.00022999,120]
[338621127,1726805023299,381.84482254,0.00022999,120]
[338621128,1726805023656,500.0,0.00022999,120]
[338621129,1726805023971,500.0,0.00022999,120]
[338621130,1726805024255,183.2287186,0.00022999,120]
[338621131,1726805025508,500.0,0.00022999,120]
[338621132,1726805025794,500.0,0.00022999,120]
[338621133,1726805026058,482.85015029,0.00022999,120]
[338621134,1726805026517,500.0,0.00022999,120]
[338621135,1726805026834,249.90951426,0.00022999,120]
[338621136,1726805029318,500.0,0.00022999,120]
[338621137,1726805029576,228.61195598,0.00022999,120]
[338621138,1726805029620,431.78984269,0.00022999,120]
[338621139,1726805032035,153.61,0.00010959,2]
[338621140,1726805033122,500.70932585,0.00022999,120]
[338621141,1726805034432,516.90873893,0.00022999,120]
[338621142,1726805035131,500.0,0.00022999,120]
[338621143,1726805035404,225.77491148,0.00022999,120]
[338621144,1726805035868,500.0,0.00022999,120]
[338621145,1726805036122,385.68959388,0.00022999,120]
[338621146,1726805036557,500.0,0.00022999,120]
[338621147,1726805036815,500.0,0.00022999,120]
[338621148,1726805037082,169.23655245,0.00022999,120]
[338621149,1726805037540,502.56783241,0.00022999,120]
[338621150,1726805039624,500.71619095,0.00022999,120]
[338621151,1726805042636,522.94833612,0.00022999,120]
[338621152,1726805043150,500.0,0.00022999,120]
[338621153,1726805043456,500.0,0.00022999,120]
[338621154,1726805043709,207.91040502,0.00022999,120]
[338621155,1726805044441,500.0,0.00022999,120]
[338621156,1726805044706,250.21978254,0.00022999,120]
[338621157,1726805045055,496.99895429,0.00022999,120]
[338621158,1726805047417,500.0,0.00022999,120]
[338621159,1726805047745,365.5468176,0.00022999,120]
[338621160,1726805047828,500.0,0.00022999,120]
[338621161,1726805048248,527.78088782,0.00022999,120]
[338621162,1726805049844,500.0,0.00022999,120]
[338621163,1726805050094,501.44035447,0.00022999,120]
[338621164,1726805050165,500.0,0.00022999,120]
[338621165,1726805050302,500.46154679,0.00022999,120]
[338621166,1726805050428,500.0,0.00022999,120]
[338621167,1726805050686,500.0,0.00022999,120]
[338621168,1726805050976,500.0,0.00022999,120]
[338621169,1726805051242,500.0,0.00022999,120]
[338621170,1726805051282,498.58715467,0.00022999,120]
[338621171,1726805051495,500.0,0.00022999,120]
[338621172,1726805051757,500.0,0.00022999,120]
[338621173,1726805052028,537.73552247,0.00022999,120]
[338621174,1726805052069,500.0,0.00022999,120]
[338621175,1726805052304,500.0,0.00022999,120]
[338621176,1726805052576,500.0,0.00022999,120]
[338621177,1726805052824,500.0,0.00022999,120]
[338621178,1726805053094,500.0,0.00022999,120]
[338621179,1726805053364,500.0,0.00022999,120]
[338621180,1726805053622,500.0,0.00022999,120]
[338621181,1726805053709,500.0,0.00022999,120]
[338621182,1726805053884,343.52466358,0.00022999,120]
[338621183,1726805053984,500.0,0.00022999,120]
[338621184,1726805054394,500.0,0.00022999,120]
[338621185,1726805054521,223.05622438,0.00022999,120]
[338621186,1726805059199,500.0,0.00022999,120]
[338621187,1726805059462,500.0,0.00022999,120]
[338621188,1726805059895,501.38523174,0.00022999,120]
[338621189,1726805060887,501.42895731,0.00022999,120]
[338621190,1726805062120,500.0,0.00022999,120]
[338621191,1726805062386,500.0,0.00022999,120]
[338621192,1726805062652,175.39397068,0.00022999,120]
[338621193,1726805064303,500.0,0.00022999,120]
[338621194,1726805064655,598.14537988,0.00022999,120]
[338621195,1726805064695,500.0,0.00022999,120]
[338621196,1726805065134,500.0,0.00022999,120]
[338621197,1726805065300,361.37952625,0.00022999,120]
[338621198,1726805065386,211.22965589,0.00022999,120]
[338621199,1726805067757,520.8834919,0.00022999,120]
[338621200,1726805069789,501.23007764,0.00022999,120]
[338621201,1726805070634,500.69227069,0.00022999,120]
[338621202,1726805071032,500.97582023,0.00022999,120]
[338621203,1726805071612,539.09625314,0.00022999,120]
[338621204,1726805071654,500.0,0.00022999,120]
[338621205,1726805071906,500.0,0.00022999,120]
[338621206,1726805072180,456.69306585,0.00022999,120]
[338621207,1726805072711,500.69465782,0.00022999,120]
[338621208,1726805073081,498.23979411,0.00022999,120]
[338621209,1726805074335,500.0,0.00022999,120]
[338621210,1726805074578,500.0,0.00022999,120]
[338621211,1726805074627,500.0,0.00022999,120]
[338621212,1726805074881,500.0,0.00022999,120]
[338621213,1726805074925,500.0,0.00022999,120]
[338621214,1726805075010,501.19872094,0.00022999,120]
[338621215,1726805075110,592.59775426,0.00022999,120]
[338621216,1726805075157,537.03120088,0.00022999,120]
[338621217,1726805077130,500.57858991,0.00022999,120]
[338621218,1726805078010,500.0,0.00022999,120]
[338621219,1726805078362,500.0,0.00022999,120]
[338621220,1726805078745,542.28175396,0.00022999,120]
[338621221,1726805079363,500.0,0.00022999,120]
[338621222,1726805079607,501.04693687,0.00022999,120]
[338621223,1726805080443,500.0,0.00022999,120]
[338621224,1726805080817,500.0,0.00022999,120]
[338621225,1726805081064,500.0,0.00022999,120]
[338621226,1726805081102,500.0,0.00022999,120]
[338621227,1726805081330,584.07701684,0.00022999,120]
[338621228,1726805081370,471.93904605,0.00022999,120]
[338621229,1726805081426,500.82891301,0.00022999,120]
[338621230,1726805085388,500.0,0.00022999,120]
[338621231,1726805085628,500.0,0.00022999,120]
[338621232,1726805085898,502.90656528,0.00022999,120]
[338621233,1726805085951,500.0,0.00022999,120]
[338621234,1726805086260,380.60391838,0.00022999,120]
[338621235,1726805087013,283.78572661,0.00022999,120]
[338621236,1726805088243,500.0,0.00022999,120]
[338621237,1726805088517,432.00501077,0.00022999,120]
[338621238,1726805089149,500.0,0.00022999,120]
[338621239,1726805090084,500.91992484,0.00022999,120]
[338621240,1726805090391,500.0,0.00022999,120]
[338621241,1726805090698,500.0,0.00022999,120]
[338621242,1726805091040,480.30442913,0.00022999,120]
[338621243,1726805091272,162.49049219,0.00022999,120]
[338621244,1726805091531,501.54854729,0.00022999,120]
[338621245,1726805093264,500.51809256,0.00022999,120]
[338621246,1726805095098,500.73647365,0.00022999,120]
[338621247,1726805095191,271.77922086,0.00022999,120]
[338621248,1726805097115,501.44223124,0.00022999,120]
[338621249,1726805097224,500.0,0.00022999,120]
[338621250,1726805097485,432.54880661,0.00022999,120]
[338621251,1726805097634,500.80738073,0.00022999,120]
[338621252,1726805098106,500.0,0.00022999,120]
[338621253,1726805098389,353.21200726,0.00022999,120]
[338621254,1726805099694,500.75641264,0.00022999,120]
[338621255,1726805100106,503.17863263,0.00022999,120]
[338621256,1726805100622,500.0,0.00022999,120]
[338621257,1726805100919,157.01067034,0.00022999,120]
[338621258,1726805101428,582.78656741,0.00022999,120]
[338621259,1726805101752,500.499378,0.00022999,120]
[338621260,1726805103821,500.56321094,0.00022999,120]
[338621261,1726805105325,501.16842698,0.00022999,120]
[338621262,1726805106251,501.39234963,0.00022999,120]
[338621263,1726805107802,500.99613952,0.00022999,120]
[338621264,1726805107941,501.02427958,0.00022999,120]
[338621265,1726805108522,500.0,0.00022999,120]
[338621266,1726805108571,388.5753679,0.00022999,120]
[338621267,1726805109198,501.09425033,0.00022999,120]
[338621268,1726805111198,500.0,0.00022999,120]
[338621269,1726805111452,500.0,0.00022999,120]
[338621270,1726805111579,500.8525494,0.00022999,120]
[338621271,1726805111735,500.0,0.00022999,120]
[338621272,1726805112005,176.11884578,0.00022999,120]
[338621273,1726805113543,601.58745378,0.00022999,120]
[338621274,1726805113682,583.67135546,0.00022999,120]
[338621275,1726805114392,500.0,0.00022999,120]
[338621276,1726805114662,500.0,0.00022999,120]
[338621277,1726805114942,500.0,0.00022999,120]
[338621278,1726805115207,600.92470882,0.00022999,120]
[338621279,1726805115488,500.81332306,0.00022999,120]
[338621280,1726805117210,536.34731438,0.00022999,120]
[338621281,1726805117880,500.52769532,0.00022999,120]
[338621282,1726805119299,500.0,0.00022999,120]
[338621283,1726805119581,500.0,0.00022999,120]
[338621284,1726805119837,500.77919154,0.00022999,120]
[338621285,1726805120212,500.0,0.00022999,120]
[338621286,1726805120530,500.0,0.00022999,120]
[338621287,1726805120864,500.0,0.00022999,120]
[338621288,1726805121135,500.0,0.00022999,120]
[338621289,1726805121392,351.88229411,0.00022999,120]
[338621290,1726805123852,500.0,0.00022999,120]
[338621291,1726805124155,500.0,0.00022999,120]
[338621292,1726805124401,583.39023872,0.00022999,120]
[338621293,1726805125750,500.98189547,0.00022999,120]
[338621294,1726805126062,500.5003662,0.00022999,120]
[338621295,1726805129310,501.98021871,0.00022999,120]
[338621296,1726805130070,500.33300198,0.00022999,120]
[338621297,1726805130425,533.89236924,0.00022999,120]
[338621298,1726805131315,500.0,0.00022999,120]
[338621299,1726805131592,467.3454853,0.00022999,120]
[338621300,1726805131636,501.3386777,0.00022999,120]
[338621301,1726805132627,506.80219256,0.00022999,120]
[338621302,1726805134527,500.0,0.00022999,120]
[338621303,1726805134712,520.43197228,0.00022999,120]
[338621304,1726805135817,500.0,0.00022999,120]
[338621305,1726805136111,500.0,0.00022999,120]
[338621306,1726805136556,531.28094333,0.00022999,120]
[338621307,1726805136894,500.0,0.00022999,120]
[338621308,1726805136942,500.0,0.00022999,120]
[338621309,1726805136998,500.0,0.00022999,120]
[338621310,1726805137265,500.0,0.00022999,120]
[338621311,1726805137560,500.0,0.00022999,120]
[338621312,1726805137719,557.0951316,0.00022999,120]
[338621313,1726805137856,500.0,0.00022999,120]
[338621314,1726805138115,500.0,0.00022999,120]
[338621315,1726805138403,500.0,0.00022999,120]
[338621316,1726805138742,307.68240898,0.00022999,120]
[338621317,1726805138822,500.0,0.00022999,120]
[338621318,1726805138976,500.85365842,0.00022999,120]
[338621319,1726805139104,571.10577196,0.00022999,120]
[338621320,1726805141066,501.04600645,0.00022999,120]
[338621321,1726805141127,500.32547585,0.00022999,120]
[338621322,1726805142963,500.0,0.00022999,120]
[338621323,1726805143114,517.2519146,0.00022999,120]
[338621324,1726805143225,442.02215249,0.00022999,120]
[338621325,1726805143588,501.62925641,0.00022999,120]
[338621326,1726805143632,500.0,0.00022999,120]
[338621327,1726805145149,501.61290914,0.00022999,120]
[338621328,1726805147207,500.0,0.00022999,120]
[338621329,1726805147283,150.42119083,0.00022999,120]
[338621330,1726805147346,500.5174227,0.00022999,120]
[338621331,1726805147652,500.0,0.00022999,120]